[Event "*** Titled Tuesday Blitz"]
[Site "Chess.com"]
[Date "2021.03.09"]
[Round "10"]
[White "SHIVACalypso"]
[Black "bylavochka"]
[Result "0-1"]
[WhiteElo "2349"]
[BlackElo "2237"]
[TimeControl "180+1"]
[EndTime "12:00:33 PST"]
[Termination "bylavochka won by resignation"]

1. Nf3 {[%clk 0:03:00.9]} 1... Nf6 {[%clk 0:03:00]} 2. c4 {[%clk 0:02:59.6]}
2... g6 {[%clk 0:03:00.4]} 3. g3 {[%clk 0:03:00.5]} 3... Bg7 {[%clk 0:03:00.8]}
4. Bg2 {[%clk 0:03:01.4]} 4... O-O {[%clk 0:03:01.2]} 5. O-O {[%clk 0:03:02.1]}
5... c5 {[%clk 0:02:58.9]} 6. Nc3 {[%clk 0:03:01.5]} 6... Nc6 {[%clk 0:02:59.2]}
7. d3 {[%clk 0:03:01.9]} 7... d6 {[%clk 0:02:58.8]} 8. Rb1 {[%clk 0:03:01.8]}
8... Nd7 {[%clk 0:02:48.7]} 9. a3 {[%clk 0:02:59.3]} 9... Nd4 {[%clk 0:02:48.1]}
10. e3 {[%clk 0:02:57.6]} 10... Nxf3+ {[%clk 0:02:47.7]} 11. Bxf3 {[%clk
0:02:58.5]} 11... Rb8 {[%clk 0:02:46.8]} 12. Qc2 {[%clk 0:02:54.4]} 12... b6
{[%clk 0:02:46.2]} 13. b4 {[%clk 0:02:53.3]} 13... Bb7 {[%clk 0:02:46.2]} 14.
Bxb7 {[%clk 0:02:51]} 14... Rxb7 {[%clk 0:02:47.1]} 15. Bb2 {[%clk 0:02:50.3]}
15... Rb8 {[%clk 0:02:45.5]} 16. Nd5 {[%clk 0:02:49.3]} 16... Ne5 {[%clk
0:02:41.9]} 17. h3 {[%clk 0:02:40]} 17... Qd7 {[%clk 0:02:39.7]} 18. Kg2 {[%clk
0:02:34.8]} 18... Rbc8 {[%clk 0:02:19.5]} 19. b5 {[%clk 0:02:34.8]} 19... h5
{[%clk 0:02:09.7]} 20. f4 {[%clk 0:02:32.6]} 20... e6 {[%clk 0:01:58.2]} 21.
fxe5 {[%clk 0:02:04.9]} 21... exd5 {[%clk 0:01:57.6]} 22. cxd5 {[%clk
0:01:55.4]} 22... dxe5 {[%clk 0:01:15]} 23. e4 {[%clk 0:01:55.1]} 23... c4
{[%clk 0:01:01.8]} 24. dxc4 {[%clk 0:01:43.9]} 24... Qxb5 {[%clk 0:00:59.2]} 25.
cxb5 {[%clk 0:01:11.3]} 25... Rxc2+ {[%clk 0:00:57.8]} 26. Rf2 {[%clk
0:01:11.7]} 26... Rfc8 {[%clk 0:00:57.5]} 27. Rf1 {[%clk 0:01:04.4]} 27... R8c4
{[%clk 0:00:16.4]} 28. Rxc2 {[%clk 0:00:58.2]} 28... Rxc2+ {[%clk 0:00:17.3]}
29. Rf2 {[%clk 0:00:59]} 29... Rc7 {[%clk 0:00:07.8]} 30. Rd2 {[%clk 0:00:55.4]}
30... Kf8 {[%clk 0:00:06.8]} 31. a4 {[%clk 0:00:53.9]} 31... Ke8 {[%clk
0:00:06.3]} 32. d6 {[%clk 0:00:47.2]} 32... Rd7 {[%clk 0:00:03.8]} 33. Rd5
{[%clk 0:00:47]} 33... f6 {[%clk 0:00:03.7]} 34. Kf3 {[%clk 0:00:43.3]} 34...
Bf8 {[%clk 0:00:03.3]} 35. Ba3 {[%clk 0:00:43.6]} 35... Kf7 {[%clk 0:00:03.6]}
36. Rd3 {[%clk 0:00:38.5]} 36... Ke6 {[%clk 0:00:03.7]} 37. Rc3 {[%clk
0:00:34.2]} 37... Bxd6 {[%clk 0:00:03.6]} 38. Rc6 {[%clk 0:00:33.3]} 38... Ke7
{[%clk 0:00:03.3]} 39. Bc1 {[%clk 0:00:29.6]} 39... Bc5 {[%clk 0:00:02.9]} 40.
Ke2 {[%clk 0:00:22.8]} 40... Rd6 {[%clk 0:00:02.8]} 41. Rc8 {[%clk 0:00:21.9]}
41... Rd4 {[%clk 0:00:01.3]} 42. Rg8 {[%clk 0:00:14.8]} 42... Rxe4+ {[%clk
0:00:01.4]} 43. Kf3 {[%clk 0:00:13.8]} 43... Rxa4 {[%clk 0:00:02.3]} 44. Rxg6
{[%clk 0:00:14.2]} 44... Ke6 {[%clk 0:00:02.8]} 45. Rh6 {[%clk 0:00:13.2]} 45...
Ra1 {[%clk 0:00:03.2]} 46. Be3 {[%clk 0:00:12.2]} 46... Ra3 {[%clk 0:00:03.3]}
47. Kf2 {[%clk 0:00:12.4]} 47... Rxe3 {[%clk 0:00:03.8]} 48. Kg2 {[%clk
0:00:13]} 48... Re2+ {[%clk 0:00:04.1]} 49. Kf1 {[%clk 0:00:10.3]} 49... Rh2
{[%clk 0:00:03.7]} 50. h4 {[%clk 0:00:09.9]} 50... Rb2 {[%clk 0:00:03.4]} 51.
Rxh5 {[%clk 0:00:10.2]} 51... Rxb5 {[%clk 0:00:03.6]} 52. Rh7 {[%clk 0:00:10.8]}
52... a5 {[%clk 0:00:03.7]} 53. h5 {[%clk 0:00:11.3]} 53... a4 {[%clk
0:00:03.9]} 54. h6 {[%clk 0:00:11.9]} 54... Rb1+ {[%clk 0:00:02.9]} 55. Kg2
{[%clk 0:00:11.1]} 55... Rg1+ {[%clk 0:00:03.1]} 56. Kh2 {[%clk 0:00:11.6]}
56... Rd1 {[%clk 0:00:01.6]} 57. Ra7 {[%clk 0:00:11.4]} 57... Rd8 {[%clk
0:00:01.7]} 58. Rxa4 {[%clk 0:00:10.2]} 58... Kf5 {[%clk 0:00:01.7]} 59. Ra7
{[%clk 0:00:09.9]} 59... Kg6 {[%clk 0:00:02.2]} 60. h7 {[%clk 0:00:10.5]} 60...
Rh8 {[%clk 0:00:02.5]} 61. Rd7 {[%clk 0:00:10.5]} 61... Rxh7+ {[%clk 0:00:03.4]}
62. Rxh7 {[%clk 0:00:10.2]} 62... Kxh7 {[%clk 0:00:04.3]} 63. Kg2 {[%clk
0:00:10.9]} 63... Kg6 {[%clk 0:00:05.2]} 64. Kf3 {[%clk 0:00:11.6]} 64... Kg5
{[%clk 0:00:06.1]} 65. Ke4 {[%clk 0:00:12.5]} 65... Kg4 {[%clk 0:00:06.5]} 0-1

[Event "*** Titled Tuesday Blitz"]
[Site "Chess.com"]
[Date "2021.03.09"]
[Round "10"]
[White "kuhlmann"]
[Black "AlexSuv"]
[Result "0-1"]
[WhiteElo "2395"]
[BlackElo "2516"]
[TimeControl "180+1"]
[EndTime "12:00:34 PST"]
[Termination "AlexSuv won by checkmate"]

1. a4 {[%clk 0:03:00.9]} 1... d5 {[%clk 0:02:57.6]} 2. g3 {[%clk 0:03:00.9]}
2... h5 {[%clk 0:02:53.8]} 3. h4 {[%clk 0:03:00.3]} 3... Nf6 {[%clk 0:02:52.7]}
4. Bg2 {[%clk 0:03:00.4]} 4... g6 {[%clk 0:02:53.3]} 5. d3 {[%clk 0:02:59.5]}
5... Bg7 {[%clk 0:02:52.6]} 6. Nd2 {[%clk 0:02:59.6]} 6... O-O {[%clk
0:02:53.2]} 7. e4 {[%clk 0:03:00]} 7... c5 {[%clk 0:02:53.5]} 8. Ngf3 {[%clk
0:02:59.8]} 8... d4 {[%clk 0:02:53.2]} 9. Nc4 {[%clk 0:02:58.1]} 9... Nc6 {[%clk
0:02:48.9]} 10. Ng5 {[%clk 0:02:57.4]} 10... Ng4 {[%clk 0:02:39.6]} 11. f3
{[%clk 0:02:34.6]} 11... Ne3 {[%clk 0:02:36.9]} 12. Nxe3 {[%clk 0:02:33.5]}
12... dxe3 {[%clk 0:02:37.8]} 13. c3 {[%clk 0:02:33.9]} 13... Ne5 {[%clk
0:02:33.1]} 14. Bf1 {[%clk 0:02:25]} 14... f6 {[%clk 0:01:48.2]} 15. Nh3 {[%clk
0:02:22.9]} 15... f5 {[%clk 0:01:48.3]} 16. d4 {[%clk 0:02:01.4]} 16... cxd4
{[%clk 0:01:37.6]} 17. cxd4 {[%clk 0:01:58.5]} 17... Qxd4 {[%clk 0:01:26.9]} 18.
Qb3+ {[%clk 0:01:41.9]} 18... Kh8 {[%clk 0:01:22.9]} 19. Bxe3 {[%clk 0:01:33]}
19... Nxf3+ {[%clk 0:01:20.6]} 20. Kf2 {[%clk 0:01:32.8]} 20... fxe4 {[%clk
0:01:08.6]} 21. Nf4 {[%clk 0:01:21.8]} 21... Qf6 {[%clk 0:00:51]} 22. Kg2 {[%clk
0:01:01]} 22... e5 {[%clk 0:00:46]} 23. Nd5 {[%clk 0:01:00.5]} 23... Qf7 {[%clk
0:00:43.1]} 24. Bc4 {[%clk 0:00:57.9]} 24... Be6 {[%clk 0:00:40.6]} 25. Nb6
{[%clk 0:00:37.6]} 25... Bxc4 {[%clk 0:00:26]} 26. Nxc4 {[%clk 0:00:37.1]} 26...
Rac8 {[%clk 0:00:25]} 27. Rac1 {[%clk 0:00:36.8]} 27... Nd4 {[%clk 0:00:24.2]}
28. Qd1 {[%clk 0:00:31.9]} 28... Rxc4 {[%clk 0:00:22.7]} 29. Rxc4 {[%clk
0:00:28.6]} 29... Qxc4 {[%clk 0:00:23.6]} 30. Re1 {[%clk 0:00:21.8]} 30... Nc2
{[%clk 0:00:20.6]} 31. Re2 {[%clk 0:00:19.1]} 31... Nxe3+ {[%clk 0:00:18.9]} 32.
Rxe3 {[%clk 0:00:20]} 32... Qd4 {[%clk 0:00:19.5]} 33. Qe2 {[%clk 0:00:19.3]}
33... Rd8 {[%clk 0:00:19.1]} 34. Rxe4 {[%clk 0:00:19.3]} 34... Qd2 {[%clk
0:00:19.5]} 35. Kh3 {[%clk 0:00:19]} 35... Qxe2 {[%clk 0:00:19.3]} 36. Rxe2
{[%clk 0:00:19.9]} 36... e4 {[%clk 0:00:19.8]} 37. Rxe4 {[%clk 0:00:14.9]} 37...
Bxb2 {[%clk 0:00:17.6]} 38. Rb4 {[%clk 0:00:14.2]} 38... Bc3 {[%clk 0:00:14.6]}
39. Rxb7 {[%clk 0:00:13.6]} 39... a5 {[%clk 0:00:15.2]} 40. g4 {[%clk
0:00:13.9]} 40... Rd3+ {[%clk 0:00:14.7]} 41. Kg2 {[%clk 0:00:13.9]} 41... hxg4
{[%clk 0:00:15.6]} 42. Rb5 {[%clk 0:00:12]} 42... Kh7 {[%clk 0:00:14.8]} 43. Rg5
{[%clk 0:00:11.8]} 43... Rd4 {[%clk 0:00:11.6]} 44. h5 {[%clk 0:00:11]} 44...
gxh5 {[%clk 0:00:10.6]} 45. Rxh5+ {[%clk 0:00:11.3]} 45... Kg6 {[%clk
0:00:11.2]} 46. Rc5 {[%clk 0:00:12.2]} 46... Bb4 {[%clk 0:00:09.3]} 47. Rb5
{[%clk 0:00:12.3]} 47... Be1 {[%clk 0:00:07.5]} 48. Re5 {[%clk 0:00:11.1]} 48...
Bd2 {[%clk 0:00:06.9]} 49. Rb5 {[%clk 0:00:09.2]} 49... Rxa4 {[%clk 0:00:07]}
50. Kg3 {[%clk 0:00:10]} 50... Bg5 {[%clk 0:00:05.7]} 51. Rb6+ {[%clk
0:00:09.7]} 51... Kh5 {[%clk 0:00:06.2]} 52. Rb5 {[%clk 0:00:09.4]} 52... Ra3+
{[%clk 0:00:06.2]} 53. Kg2 {[%clk 0:00:10.3]} 53... a4 {[%clk 0:00:06.6]} 54.
Rb8 {[%clk 0:00:06.9]} 54... Bf4 {[%clk 0:00:05.7]} 55. Rh8+ {[%clk 0:00:06.2]}
55... Kg5 {[%clk 0:00:06.2]} 56. Rg8+ {[%clk 0:00:06.7]} 56... Kf5 {[%clk
0:00:06.8]} 57. Rf8+ {[%clk 0:00:07.2]} 57... Ke4 {[%clk 0:00:07.4]} 58. Re8+
{[%clk 0:00:08.1]} 58... Be5 {[%clk 0:00:07.7]} 59. Re7 {[%clk 0:00:07.9]} 59...
Ra2+ {[%clk 0:00:08.2]} 60. Kf1 {[%clk 0:00:07.6]} 60... a3 {[%clk 0:00:09.1]}
61. Rg7 {[%clk 0:00:07.4]} 61... g3 {[%clk 0:00:09.6]} 62. Rg4+ {[%clk
0:00:07.2]} 62... Kf3 {[%clk 0:00:09.7]} 63. Rxg3+ {[%clk 0:00:05.6]} 63... Bxg3
{[%clk 0:00:09.1]} 64. Kg1 {[%clk 0:00:05.2]} 64... Ra1# {[%clk 0:00:10]} 0-1

[Event "*** Titled Tuesday Blitz"]
[Site "Chess.com"]
[Date "2021.03.09"]
[Round "10"]
[White "SergeyShtyka"]
[Black "urutodo"]
[Result "0-1"]
[WhiteElo "2418"]
[BlackElo "2327"]
[TimeControl "180+1"]
[EndTime "12:00:35 PST"]
[Termination "urutodo won on time"]

1. e4 {[%clk 0:03:00.9]} 1... c6 {[%clk 0:03:00.3]} 2. Nf3 {[%clk 0:03:01.1]}
2... d5 {[%clk 0:03:01.2]} 3. Nc3 {[%clk 0:03:01.6]} 3... dxe4 {[%clk
0:03:01.2]} 4. Nxe4 {[%clk 0:03:02.5]} 4... Nf6 {[%clk 0:03:01.8]} 5. Nxf6+
{[%clk 0:03:02.5]} 5... exf6 {[%clk 0:03:02.7]} 6. g3 {[%clk 0:03:03.3]} 6...
Bd6 {[%clk 0:03:02.9]} 7. Bg2 {[%clk 0:03:03.8]} 7... O-O {[%clk 0:03:03.6]} 8.
O-O {[%clk 0:03:03.1]} 8... Re8 {[%clk 0:03:03.7]} 9. d4 {[%clk 0:03:03]} 9...
Bg4 {[%clk 0:03:03.4]} 10. Re1 {[%clk 0:03:03.2]} 10... Nd7 {[%clk 0:03:03.4]}
11. Rxe8+ {[%clk 0:03:02.4]} 11... Qxe8 {[%clk 0:03:03.6]} 12. Be3 {[%clk
0:03:03.1]} 12... Nb6 {[%clk 0:02:58.4]} 13. b3 {[%clk 0:03:02.8]} 13... Qd7
{[%clk 0:02:53.5]} 14. c4 {[%clk 0:03:02]} 14... Bc7 {[%clk 0:02:53.7]} 15. Qd3
{[%clk 0:02:57.4]} 15... Bf5 {[%clk 0:02:38.1]} 16. Qc3 {[%clk 0:02:55.9]} 16...
Be4 {[%clk 0:02:37.5]} 17. Re1 {[%clk 0:02:53.8]} 17... f5 {[%clk 0:02:25]} 18.
a4 {[%clk 0:02:42.8]} 18... Rd8 {[%clk 0:02:18]} 19. a5 {[%clk 0:02:33.4]} 19...
Nc8 {[%clk 0:02:17.8]} 20. b4 {[%clk 0:02:21.8]} 20... f6 {[%clk 0:02:12.8]} 21.
a6 {[%clk 0:02:15]} 21... b6 {[%clk 0:02:09.5]} 22. b5 {[%clk 0:02:09.6]} 22...
cxb5 {[%clk 0:02:05.4]} 23. cxb5 {[%clk 0:02:08.3]} 23... Ne7 {[%clk 0:02:05.3]}
24. Nd2 {[%clk 0:01:53.7]} 24... Bxg2 {[%clk 0:02:01.3]} 25. Kxg2 {[%clk
0:01:53.8]} 25... Nd5 {[%clk 0:02:00.3]} 26. Qc4 {[%clk 0:01:53]} 26... Kh8
{[%clk 0:01:59.1]} 27. Nf1 {[%clk 0:01:41.6]} 27... f4 {[%clk 0:01:53.4]} 28.
Bd2 {[%clk 0:01:35.9]} 28... Qf5 {[%clk 0:01:39.9]} 29. f3 {[%clk 0:01:24.9]}
29... h5 {[%clk 0:01:37.5]} 30. Qe2 {[%clk 0:01:17.1]} 30... Kh7 {[%clk
0:01:11.9]} 31. Qe4 {[%clk 0:01:16.5]} 31... Kg6 {[%clk 0:00:57.3]} 32. h3
{[%clk 0:01:03.1]} 32... fxg3 {[%clk 0:00:56.5]} 33. Nxg3 {[%clk 0:00:58.2]}
33... Bxg3 {[%clk 0:00:53.9]} 34. Kxg3 {[%clk 0:00:54.7]} 34... Rd7 {[%clk
0:00:43.6]} 35. Kf2 {[%clk 0:00:53.7]} 35... Ne7 {[%clk 0:00:41.3]} 36. Qe3
{[%clk 0:00:33.3]} 36... Qxh3 {[%clk 0:00:36.7]} 37. Rg1+ {[%clk 0:00:33]} 37...
Kh7 {[%clk 0:00:34.8]} 38. Rg3 {[%clk 0:00:29.5]} 38... Qf5 {[%clk 0:00:34.1]}
39. Rg1 {[%clk 0:00:24.3]} 39... Nd5 {[%clk 0:00:32.9]} 40. Qe4 {[%clk
0:00:22.5]} 40... Ne7 {[%clk 0:00:28.6]} 41. Rc1 {[%clk 0:00:20.3]} 41... Kg8
{[%clk 0:00:25]} 42. Be3 {[%clk 0:00:17]} 42... Kf7 {[%clk 0:00:24.1]} 43. Rc4
{[%clk 0:00:12]} 43... g5 {[%clk 0:00:24]} 44. Rc1 {[%clk 0:00:09.1]} 44... h4
{[%clk 0:00:24]} 45. Rd1 {[%clk 0:00:06.5]} 45... Kg6 {[%clk 0:00:23.8]} 46. d5
{[%clk 0:00:06.5]} 46... Qxe4 {[%clk 0:00:20.7]} 47. fxe4 {[%clk 0:00:06.1]}
47... f5 {[%clk 0:00:21.6]} 48. d6 {[%clk 0:00:05.3]} 48... Kf7 {[%clk
0:00:17.8]} 49. e5 {[%clk 0:00:04.3]} 49... Ng6 {[%clk 0:00:15.5]} 50. Bd4
{[%clk 0:00:03.5]} 50... Ke6 {[%clk 0:00:15.3]} 51. Rc1 {[%clk 0:00:03.7]} 51...
Nxe5 {[%clk 0:00:13.2]} 52. Re1 {[%clk 0:00:03.8]} 52... Rxd6 {[%clk 0:00:13]}
53. Bxe5 {[%clk 0:00:04.2]} 53... Rd7 {[%clk 0:00:12.9]} 54. Bc3+ {[%clk
0:00:03.7]} 54... Kf7 {[%clk 0:00:12]} 55. Rg1 {[%clk 0:00:03.2]} 55... Kg6
{[%clk 0:00:11.9]} 56. Ke3 {[%clk 0:00:03.7]} 56... Re7+ {[%clk 0:00:11]} 57.
Kd3 {[%clk 0:00:01.3]} 57... g4 {[%clk 0:00:11.9]} 58. Bd4 {[%clk 0:00:01.6]}
58... Rd7 {[%clk 0:00:12.7]} 0-1

[Event "*** Titled Tuesday Blitz"]
[Site "Chess.com"]
[Date "2021.03.09"]
[Round "10"]
[White "Fy_Rakotomaharo"]
[Black "StockholmMissile"]
[Result "1-0"]
[WhiteElo "2722"]
[BlackElo "2582"]
[TimeControl "180+1"]
[EndTime "12:00:36 PST"]
[Termination "Fy_Rakotomaharo won on time"]

1. d4 {[%clk 0:02:21.9]} 1... d5 {[%clk 0:02:59.5]} 2. Nf3 {[%clk 0:02:21.7]}
2... Nf6 {[%clk 0:02:59.4]} 3. g3 {[%clk 0:02:21.7]} 3... Bf5 {[%clk 0:02:57.2]}
4. Bg2 {[%clk 0:02:22.1]} 4... e6 {[%clk 0:02:57.4]} 5. O-O {[%clk 0:02:22.7]}
5... Be7 {[%clk 0:02:57.7]} 6. c4 {[%clk 0:02:22.6]} 6... c6 {[%clk 0:02:57.8]}
7. Nc3 {[%clk 0:02:21.7]} 7... Nbd7 {[%clk 0:02:56.5]} 8. Nh4 {[%clk 0:02:18.5]}
8... Bg6 {[%clk 0:02:55.9]} 9. b3 {[%clk 0:02:15.6]} 9... O-O {[%clk 0:02:52.5]}
10. h3 {[%clk 0:02:15.4]} 10... Qa5 {[%clk 0:02:47.5]} 11. Bd2 {[%clk 0:02:14]}
11... Qa6 {[%clk 0:02:44.9]} 12. Nxg6 {[%clk 0:02:12.7]} 12... hxg6 {[%clk
0:02:44.4]} 13. e4 {[%clk 0:02:10.6]} 13... dxc4 {[%clk 0:02:39.9]} 14. h4
{[%clk 0:01:58.7]} 14... cxb3 {[%clk 0:02:37.2]} 15. axb3 {[%clk 0:01:58.5]}
15... Qb6 {[%clk 0:02:37.3]} 16. Be3 {[%clk 0:01:55.9]} 16... Qc7 {[%clk
0:02:32]} 17. Qf3 {[%clk 0:01:50.4]} 17... e5 {[%clk 0:02:28.6]} 18. Rfc1 {[%clk
0:01:46.1]} 18... Qb8 {[%clk 0:02:23.5]} 19. d5 {[%clk 0:01:41.2]} 19... cxd5
{[%clk 0:02:15.8]} 20. exd5 {[%clk 0:01:40.7]} 20... Bd6 {[%clk 0:01:50.6]} 21.
Nb5 {[%clk 0:01:36.1]} 21... a6 {[%clk 0:01:50.3]} 22. Nc3 {[%clk 0:01:24.1]}
22... Rc8 {[%clk 0:01:47.9]} 23. g4 {[%clk 0:01:22.4]} 23... Nc5 {[%clk
0:01:22.1]} 24. g5 {[%clk 0:01:13.5]} 24... Nh5 {[%clk 0:01:21.6]} 25. Ne4
{[%clk 0:01:01.5]} 25... Nxe4 {[%clk 0:01:18.2]} 26. Qxe4 {[%clk 0:01:00.4]}
26... Rxc1+ {[%clk 0:01:17.9]} 27. Rxc1 {[%clk 0:01:00.3]} 27... Qd8 {[%clk
0:01:08.8]} 28. Kh2 {[%clk 0:00:58.2]} 28... Nf4 {[%clk 0:01:07.6]} 29. Bf3
{[%clk 0:00:56.6]} 29... Qd7 {[%clk 0:01:06.4]} 30. Bxf4 {[%clk 0:00:51.4]}
30... exf4 {[%clk 0:01:07.3]} 31. Kg2 {[%clk 0:00:47]} 31... Re8 {[%clk
0:01:06.4]} 32. Qd3 {[%clk 0:00:45.4]} 32... Qf5 {[%clk 0:00:57]} 33. Qxf5
{[%clk 0:00:45.2]} 33... gxf5 {[%clk 0:00:57.9]} 34. h5 {[%clk 0:00:45.8]} 34...
Kh7 {[%clk 0:00:52.6]} 35. Rh1 {[%clk 0:00:34.6]} 35... Rc8 {[%clk 0:00:36.6]}
36. Re1 {[%clk 0:00:34.4]} 36... Kg8 {[%clk 0:00:26.4]} 37. g6 {[%clk
0:00:33.6]} 37... fxg6 {[%clk 0:00:25.1]} 38. hxg6 {[%clk 0:00:34.5]} 38... Kf8
{[%clk 0:00:24.7]} 39. Re6 {[%clk 0:00:33.9]} 39... Rd8 {[%clk 0:00:24.9]} 40.
Kf1 {[%clk 0:00:32]} 40... Rd7 {[%clk 0:00:18.8]} 41. Be2 {[%clk 0:00:23.9]}
41... Be7 {[%clk 0:00:15.9]} 42. Re5 {[%clk 0:00:23]} 42... Bf6 {[%clk
0:00:15.5]} 43. Rxf5 {[%clk 0:00:23.4]} 43... Ke7 {[%clk 0:00:15.7]} 44. Bf3
{[%clk 0:00:23.6]} 44... Kd6 {[%clk 0:00:14.5]} 45. Rxf4 {[%clk 0:00:22.1]}
45... Rc7 {[%clk 0:00:12.8]} 46. Kg2 {[%clk 0:00:21.1]} 46... Rc3 {[%clk
0:00:10.6]} 47. Bg4 {[%clk 0:00:14]} 47... Rxb3 {[%clk 0:00:09.1]} 48. Rxf6+
{[%clk 0:00:14.1]} 48... Kxd5 {[%clk 0:00:06.9]} 49. Rf7 {[%clk 0:00:14.3]}
49... Rb4 {[%clk 0:00:05]} 50. f3 {[%clk 0:00:14]} 50... Rb2+ {[%clk 0:00:04.7]}
51. Kg3 {[%clk 0:00:14.5]} 51... Rb6 {[%clk 0:00:03.8]} 52. Rxg7 {[%clk
0:00:14.3]} 52... a5 {[%clk 0:00:04.3]} 53. Rg8 {[%clk 0:00:13.7]} 53... Ke5
{[%clk 0:00:03.6]} 54. g7 {[%clk 0:00:14]} 54... Kf6 {[%clk 0:00:04]} 55. Ra8
{[%clk 0:00:11.7]} 55... Kxg7 {[%clk 0:00:03.5]} 56. Rxa5 {[%clk 0:00:12.1]}
56... Rb4 {[%clk 0:00:03.5]} 57. Bd7 {[%clk 0:00:11.7]} 57... b6 {[%clk
0:00:03.2]} 58. Rb5 {[%clk 0:00:11.8]} 58... Rxb5 {[%clk 0:00:02.1]} 59. Bxb5
{[%clk 0:00:11.7]} 59... Kf6 {[%clk 0:00:03]} 60. Kf4 {[%clk 0:00:12.2]} 60...
Ke6 {[%clk 0:00:03.4]} 61. Ke4 {[%clk 0:00:12.8]} 61... Kd6 {[%clk 0:00:03.6]}
62. Kd4 {[%clk 0:00:12.4]} 62... Ke6 {[%clk 0:00:03.9]} 63. Bc6 {[%clk
0:00:12.8]} 63... Kf5 {[%clk 0:00:04.2]} 64. Be4+ {[%clk 0:00:13.1]} 64... Kf4
{[%clk 0:00:04.5]} 65. Kc4 {[%clk 0:00:14]} 65... Ke5 {[%clk 0:00:04.8]} 66. Kb5
{[%clk 0:00:14.9]} 1-0

[Event "*** Titled Tuesday Blitz"]
[Site "Chess.com"]
[Date "2021.03.09"]
[Round "10"]
[White "Arvids_Andrejevs"]
[Black "Gulkov_Igor"]
[Result "1-0"]
[WhiteElo "2445"]
[BlackElo "2530"]
[TimeControl "180+1"]
[EndTime "12:00:37 PST"]
[Termination "Arvids_Andrejevs won on time"]

1. e4 {[%clk 0:03:00.9]} 1... c5 {[%clk 0:02:59.1]} 2. c3 {[%clk 0:03:01.1]}
2... Nf6 {[%clk 0:02:58.5]} 3. e5 {[%clk 0:03:01.2]} 3... Nd5 {[%clk 0:02:58.6]}
4. Nf3 {[%clk 0:03:01.6]} 4... d6 {[%clk 0:02:57.8]} 5. exd6 {[%clk 0:03:01.1]}
5... Qxd6 {[%clk 0:02:57.5]} 6. d4 {[%clk 0:03:01.6]} 6... Nc6 {[%clk
0:02:50.1]} 7. a3 {[%clk 0:02:52.8]} 7... cxd4 {[%clk 0:02:49.4]} 8. cxd4 {[%clk
0:02:52.6]} 8... Bg4 {[%clk 0:02:46.8]} 9. Be2 {[%clk 0:02:52.8]} 9... e6 {[%clk
0:02:46.2]} 10. h3 {[%clk 0:02:52.7]} 10... Bxf3 {[%clk 0:02:44.5]} 11. Bxf3
{[%clk 0:02:53.6]} 11... Be7 {[%clk 0:02:44.2]} 12. O-O {[%clk 0:02:52.6]} 12...
O-O {[%clk 0:02:43.5]} 13. Nc3 {[%clk 0:02:52.8]} 13... Nxc3 {[%clk 0:02:39]}
14. bxc3 {[%clk 0:02:52.5]} 14... Rac8 {[%clk 0:02:16.5]} 15. Qa4 {[%clk
0:02:45]} 15... b6 {[%clk 0:02:12.3]} 16. g3 {[%clk 0:02:29.5]} 16... Na5 {[%clk
0:01:57.6]} 17. Bf4 {[%clk 0:02:28.1]} 17... Qd8 {[%clk 0:01:56.8]} 18. Qc2
{[%clk 0:01:40.7]} 18... Bd6 {[%clk 0:01:51.8]} 19. Bxd6 {[%clk 0:01:27.4]}
19... Qxd6 {[%clk 0:01:50.7]} 20. Qd3 {[%clk 0:01:25.6]} 20... Rc7 {[%clk
0:01:40.8]} 21. a4 {[%clk 0:01:00.9]} 21... Rfc8 {[%clk 0:01:38.5]} 22. Rac1
{[%clk 0:01:00.9]} 22... Qa3 {[%clk 0:01:31.7]} 23. Rfe1 {[%clk 0:00:55.8]}
23... Rxc3 {[%clk 0:01:26.7]} 24. Rxc3 {[%clk 0:00:55.6]} 24... Qxc3 {[%clk
0:01:26.7]} 25. Qe4 {[%clk 0:00:52.4]} 25... g6 {[%clk 0:01:22.4]} 26. Kg2
{[%clk 0:00:50.2]} 26... Qc7 {[%clk 0:01:12.6]} 27. d5 {[%clk 0:00:46.5]} 27...
exd5 {[%clk 0:01:11.9]} 28. Qxd5 {[%clk 0:00:47.4]} 28... Rd8 {[%clk 0:01:10.9]}
29. Qg5 {[%clk 0:00:43.1]} 29... Kg7 {[%clk 0:01:00.1]} 30. Re7 {[%clk
0:00:41.9]} 30... Qd6 {[%clk 0:00:57.7]} 31. Rxa7 {[%clk 0:00:32.4]} 31... Rd7
{[%clk 0:00:57.4]} 32. Rxd7 {[%clk 0:00:29.9]} 32... Qxd7 {[%clk 0:00:57.5]} 33.
Qe5+ {[%clk 0:00:30.4]} 33... f6 {[%clk 0:00:53.9]} 34. Qe4 {[%clk 0:00:25.5]}
34... Qc7 {[%clk 0:00:52.2]} 35. h4 {[%clk 0:00:24.8]} 35... h5 {[%clk 0:00:51]}
36. Qb4 {[%clk 0:00:21.8]} 36... Nc4 {[%clk 0:00:46.5]} 37. Qb5 {[%clk
0:00:19.6]} 37... Nd6 {[%clk 0:00:45.2]} 38. Qd5 {[%clk 0:00:19.5]} 38... Nf5
{[%clk 0:00:44.2]} 39. Qe4 {[%clk 0:00:16.9]} 39... Nd6 {[%clk 0:00:36.4]} 40.
Qf4 {[%clk 0:00:16.3]} 40... Qe7 {[%clk 0:00:34.6]} 41. g4 {[%clk 0:00:16.4]}
41... hxg4 {[%clk 0:00:34]} 42. Qxg4 {[%clk 0:00:17.3]} 42... f5 {[%clk
0:00:26.9]} 43. Qd4+ {[%clk 0:00:16.6]} 43... Qf6 {[%clk 0:00:27]} 44. Qxb6
{[%clk 0:00:16.5]} 44... Qe5 {[%clk 0:00:26.6]} 45. Qa7+ {[%clk 0:00:14.1]}
45... Kh6 {[%clk 0:00:26.2]} 46. Qe3+ {[%clk 0:00:14.7]} 46... Qxe3 {[%clk
0:00:24.5]} 47. fxe3 {[%clk 0:00:15.6]} 47... Nc4 {[%clk 0:00:25]} 48. Kf2
{[%clk 0:00:12.2]} 48... g5 {[%clk 0:00:21]} 49. hxg5+ {[%clk 0:00:11]} 49...
Kxg5 {[%clk 0:00:21.3]} 50. Bd5 {[%clk 0:00:11.5]} 50... Nb6 {[%clk 0:00:19.3]}
51. Bb3 {[%clk 0:00:10.9]} 51... Kf6 {[%clk 0:00:16.6]} 52. a5 {[%clk
0:00:10.9]} 52... Nc8 {[%clk 0:00:17.3]} 53. a6 {[%clk 0:00:10.5]} 53... Na7
{[%clk 0:00:16.3]} 54. Kf3 {[%clk 0:00:09.3]} 54... Ke5 {[%clk 0:00:16.5]} 55.
Ba4 {[%clk 0:00:09.7]} 55... Nc8 {[%clk 0:00:13.4]} 56. Bc6 {[%clk 0:00:06.3]}
56... Kd6 {[%clk 0:00:12.3]} 57. Bb7 {[%clk 0:00:06]} 57... Na7 {[%clk
0:00:12.6]} 58. Kf4 {[%clk 0:00:06.3]} 58... Ke6 {[%clk 0:00:12.5]} 59. Bg2
{[%clk 0:00:05.7]} 59... Kf6 {[%clk 0:00:11.8]} 60. Bh3 {[%clk 0:00:05.5]} 60...
Nc6 {[%clk 0:00:07.5]} 61. Bxf5 {[%clk 0:00:06.4]} 61... Nb4 {[%clk 0:00:02]}
62. a7 {[%clk 0:00:06.4]} 1-0